fUSD/lending_fUSD_20260624
["ID","MTS","AMOUNT","RATE_DAILY","PERIOD"]
[426304588,1782261046000,-154.50054738,0.00025387,2]
[426304590,1782261046000,-205.8336936,0.00025387,2]
[426304538,1782261046000,-227.21789281,0.00025,2]
[426304580,1782261046000,-163.77142192,0.00025387,2]
[426304579,1782261046000,-197.51629955,0.00025387,2]
[426304586,1782261046000,-154.21578407,0.00025387,2]
[426304566,1782261046000,-677.92587956,0.00025152,2]
[426304564,1782261046000,-151.0,0.00025071,2]
[426304551,1782261046000,-440.44,0.00025,2]
[426304554,1782261046000,-181.06701296,0.00025016,2]
[426304550,1782261046000,-440.44,0.00025,2]
[426304553,1782261046000,-170.21199942,0.00025012,2]
[426304555,1782261046000,-151.0,0.00025016,2]
[426304552,1782261046000,-440.44,0.00025,2]
[426304546,1782261046000,-690.12878834,0.00025,2]
[426304547,1782261046000,-169.0,0.00025,2]
[426304545,1782261046000,-50000.0,0.00025,7]
[426304548,1782261046000,-50000.0,0.00025,7]
[426304556,1782261046000,-151.0,0.00025016,2]
[426304558,1782261046000,-200.0,0.00025035,2]
[426304559,1782261046000,-2991.49051684,0.00025035,2]
[426304563,1782261046000,-151.0,0.00025071,2]
[426304557,1782261046000,-165.61726479,0.00025035,2]
[426304562,1782261046000,-181.06701308,0.00025071,2]
[426304561,1782261046000,-152.0,0.00025071,11]
[426304567,1782261046000,-2688.8869907,0.00025178,2]
[426304565,1782261046000,-10057.19854908,0.000251,2]
[426304549,1782261046000,-174.0,0.00025,7]
[426304560,1782261046000,-179.38868994,0.00025052,4]
[426304640,1782261047000,-316.0,0.000257,2]
[426304638,1782261047000,-200.0,0.00025648,2]
[426304633,1782261047000,-394.0,0.00025536,2]
[426304635,1782261047000,-200.0,0.00025583,2]
[426304629,1782261047000,-177.00087757,0.00025493,2]
[426304623,1782261047000,-152.72768973,0.00025493,2]
[426304627,1782261047000,-178.52977037,0.00025493,2]
[426304626,1782261047000,-197.34433598,0.00025493,2]
[426304624,1782261047000,-200.88749078,0.00025493,2]
[426304637,1782261047000,-573.0,0.00025603,10]
[426304622,1782261047000,-212.23411317,0.00025493,2]
[426304625,1782261047000,-184.54912207,0.00025493,2]
[426304636,1782261047000,-10057.19854908,0.000256,2]
[426304650,1782261047000,-1017.12,0.00026,7]
[426304634,1782261047000,-152.0,0.00025537,12]
[426304630,1782261047000,-151.94870413,0.00025493,2]
[426304631,1782261047000,-163.71764896,0.00025493,2]
[426304639,1782261047000,-1000.0,0.000257,2]
[426304641,1782261047000,-207.74,0.00025708,2]
[426304645,1782261047000,-923.74,0.00025786,2]
[426304642,1782261047000,-194.72792766,0.00025725,2]
[426304643,1782261047000,-2688.8869907,0.00025726,2]
[426304644,1782261047000,-500.0,0.00025785,2]
[426304654,1782261047000,-677.92587956,0.00026,2]
[426304646,1782261047000,-3541.45,0.00025786,2]
[426304652,1782261047000,-50000.0,0.00026,7]
[426304620,1782261047000,-247.82309006,0.00025493,2]
[426304632,1782261047000,-169.80518273,0.00025493,2]
[426304621,1782261047000,-192.75570745,0.00025493,2]
[426304600,1782261047000,-151.0,0.00025452,2]
[426304628,1782261047000,-199.18927161,0.00025493,2]
[426304593,1782261047000,-178.546956,0.00025387,2]
[426304603,1782261047000,-155.59381464,0.00025452,2]
[426304592,1782261047000,-168.50398799,0.00025387,2]
[426304594,1782261047000,-150.40697644,0.00025387,2]
[426304602,1782261047000,-653.30079349,0.00025452,2]
[426304595,1782261047000,-199.99541127,0.00025387,2]
[426304648,1782261047000,-59898.27,0.00025786,2]
[426304597,1782261047000,-166.51044432,0.00025397,2]
[426304598,1782261047000,-10057.19854908,0.000254,2]
[426304596,1782261047000,-692.46006228,0.00025387,2]
[426304599,1782261047000,-187.78006524,0.00025452,2]
[426304601,1782261047000,-251.54599188,0.00025452,2]
[426304607,1782261047000,-201.93286098,0.00025452,2]
[426304604,1782261047000,-201.93286098,0.00025452,2]
[426304612,1782261047000,-274.32925188,0.00025489,2]
[426304605,1782261047000,-2688.8869907,0.00025452,2]
[426304606,1782261047000,-9211.34798984,0.00025452,2]
[426304608,1782261047000,-766.18943153,0.00025452,2]
[426304610,1782261047000,-201.93286098,0.00025452,2]
[426304609,1782261047000,-201.93286098,0.00025452,2]
[426304611,1782261047000,-591.0,0.00025455,7]
[426304615,1782261047000,-164.61906445,0.00025493,2]
[426304614,1782261047000,-156.59595979,0.00025493,2]
[426304616,1782261047000,-302.48419894,0.00025493,2]
[426304613,1782261047000,-177.89528757,0.00025493,2]
[426304618,1782261047000,-334.97956605,0.00025493,2]
[426304619,1782261047000,-178.70766292,0.00025493,2]
[426304617,1782261047000,-164.12072356,0.00025493,2]
[426304649,1782261047000,-10057.19854908,0.000259,2]
[426304653,1782261047000,-15239.35068509,0.00026,2]
[426304651,1782261047000,-4351.38,0.00026,7]
[426304685,1782261047000,-150.0,0.00026376,5]
[426304683,1782261047000,-484.582918,0.00026361,2]
[426304691,1782261047000,-15239.35068509,0.00026444,2]
[426304688,1782261047000,-574.82,0.000264,7]
[426304689,1782261047000,-200.0,0.00026402,2]
[426304690,1782261047000,-9156.15,0.00026422,7]
[426304700,1782261047000,-653.30079349,0.00026548,2]
[426304702,1782261047000,-217.15233878,0.00026548,2]
[426304703,1782261047000,-9905.59807649,0.00026548,2]
[426304694,1782261047000,-383.0,0.00026523,2]
[426304693,1782261047000,-339.295611,0.000265,2]
[426304701,1782261047000,-155.59381464,0.00026548,2]
[426304695,1782261047000,-1361.0,0.00026523,2]
[426304684,1782261047000,-498.29,0.00026362,2]
[426304696,1782261047000,-1277.0,0.00026523,2]
[426304698,1782261047000,-201.93286098,0.00026548,2]
[426304699,1782261047000,-151.0,0.00026548,2]
[426304706,1782261047000,-766.18943153,0.00026548,2]
[426304704,1782261047000,-2688.8869907,0.00026548,2]
[426304705,1782261047000,-286.31748486,0.00026548,2]
[426304707,1782261047000,-217.15233878,0.00026548,2]
[426304709,1782261047000,-395.36267707,0.00026658,2]
[426304708,1782261047000,-330.66580298,0.00026548,2]
[426304714,1782261047000,-152.63920562,0.00026658,2]
[426304710,1782261047000,-332.11578966,0.00026658,2]
[426304712,1782261047000,-383.77907627,0.00026658,2]
[426304647,1782261047000,-590.77,0.00025786,2]
[426304713,1782261047000,-210.89490108,0.00026658,2]
[426304697,1782261047000,-1229.0,0.00026523,2]
[426304687,1782261047000,-166.51044432,0.00026397,2]
[426304711,1782261047000,-1148.95981443,0.00026658,2]
[426304686,1782261047000,-489.119018,0.00026376,2]
[426304682,1782261047000,-496.167018,0.00026361,2]
[426304655,1782261047000,-3482190.15218088,0.00026,2]
[426304667,1782261047000,-209.40437684,0.00026,2]
[426304661,1782261047000,-209.40437684,0.00026,2]
[426304662,1782261047000,-2688.8869907,0.00026,2]
[426304666,1782261047000,-209.40437684,0.00026,2]
[426304664,1782261047000,-209.40437684,0.00026,2]
[426304663,1782261047000,-9552.16786547,0.00026,2]
[426304659,1782261047000,-653.30079349,0.00026,2]
[426304660,1782261047000,-155.59381464,0.00026,2]
[426304665,1782261047000,-766.18943153,0.00026,2]
[426304656,1782261047000,-545.08,0.00026,2]
[426304657,1782261047000,-194.72792766,0.00026,2]
[426304669,1782261047000,-250.0,0.00026027,18]
[426304658,1782261047000,-151.0,0.00026,2]
[426304680,1782261047000,-2688.8869907,0.00026274,2]
[426304679,1782261047000,-15239.35068509,0.00026222,2]
[426304692,1782261047000,-152.0,0.0002647,14]
[426304681,1782261047000,-759.1,0.00026296,2]
[426304678,1782261047000,-500.0,0.00026219,2]
[426304676,1782261047000,-2000.0,0.000262,2]
[426304668,1782261047000,-152.0,0.00026003,13]
[426304675,1782261047000,-200.0,0.00026131,2]
[426304672,1782261047000,-219.0,0.000261,2]
[426304674,1782261047000,-338.0,0.000261,2]
[426304671,1782261047000,-150.0,0.00026093,2]
[426304677,1782261047000,-440.87902884,0.00026219,2]
[426304673,1782261047000,-10057.19854908,0.000261,2]
[426304670,1782261047000,-591.0,0.00026061,7]
[426304756,1782261048000,-500.0,0.00026666,2]
[426304748,1782261048000,-500.0,0.00026666,2]
[426304758,1782261048000,-500.0,0.00026666,2]
[426304751,1782261048000,-500.0,0.00026666,2]
[426304752,1782261048000,-500.0,0.00026666,2]
[426304744,1782261048000,-500.0,0.00026666,2]
[426304747,1782261048000,-500.0,0.00026666,2]
[426304750,1782261048000,-500.0,0.00026666,2]
[426304745,1782261048000,-500.0,0.00026666,2]
[426304746,1782261048000,-500.0,0.00026666,2]
[426304755,1782261048000,-500.0,0.00026666,2]
[426304749,1782261048000,-500.0,0.00026666,2]
[426304757,1782261048000,-500.0,0.00026666,2]
[426304765,1782261048000,-500.0,0.00026666,2]
[426304759,1782261048000,-500.0,0.00026666,2]
[426304762,1782261048000,-500.0,0.00026666,2]
[426304761,1782261048000,-500.0,0.00026666,2]
[426304764,1782261048000,-500.0,0.00026666,2]
[426304766,1782261048000,-500.0,0.00026666,2]
[426304763,1782261048000,-500.0,0.00026666,2]
[426304768,1782261048000,-500.0,0.00026666,2]
[426304767,1782261048000,-500.0,0.00026666,2]
[426304770,1782261048000,-500.0,0.00026666,2]
[426304780,1782261048000,-500.0,0.00026666,2]
[426304773,1782261048000,-500.0,0.00026666,2]
[426304754,1782261048000,-500.0,0.00026666,2]
[426304779,1782261048000,-500.0,0.00026666,2]
[426304760,1782261048000,-500.0,0.00026666,2]
[426304742,1782261048000,-500.0,0.00026666,2]
[426304729,1782261048000,-391.72770676,0.00026658,2]
[426304753,1782261048000,-500.0,0.00026666,2]
[426304772,1782261048000,-500.0,0.00026666,2]
[426304715,1782261048000,-395.0325991,0.00026658,2]
[426304716,1782261048000,-327.54284383,0.00026658,2]
[426304718,1782261048000,-312.98929811,0.00026658,2]
[426304720,1782261048000,-389.47193293,0.00026658,2]
[426304727,1782261048000,-358.14685167,0.00026658,2]
[426304726,1782261048000,-311.7122306,0.00026658,2]
[426304724,1782261048000,-308.43156813,0.00026658,2]
[426304721,1782261048000,-339.85241118,0.00026658,2]
[426304717,1782261048000,-311.14405945,0.00026658,2]
[426304728,1782261048000,-411.66738721,0.00026658,2]
[426304719,1782261048000,-152.5836371,0.00026658,2]
[426304725,1782261048000,-309.00109476,0.00026658,2]
[426304722,1782261048000,-393.83389227,0.00026658,2]
[426304723,1782261048000,-247.99298746,0.00026658,2]
[426304730,1782261048000,-337.00797599,0.00026658,2]
[426304731,1782261048000,-357.093912,0.00026658,2]
[426304741,1782261048000,-500.0,0.00026666,2]
[426304740,1782261048000,-500.0,0.00026666,2]
[426304739,1782261048000,-500.0,0.00026666,2]
[426304738,1782261048000,-500.0,0.00026666,2]
[426304732,1782261048000,-209.24814807,0.00026658,2]
[426304733,1782261048000,-300.81395289,0.00026658,2]
[426304737,1782261048000,-519.34504671,0.00026658,2]
[426304734,1782261048000,-242.02757478,0.00026658,2]
[426304735,1782261048000,-234.25279286,0.00026658,2]
[426304736,1782261048000,-399.99082253,0.00026658,2]
[426304743,1782261048000,-500.0,0.00026666,2]
[426304771,1782261048000,-500.0,0.00026666,2]
[426304769,1782261048000,-500.0,0.00026666,2]
[426304778,1782261048000,-500.0,0.00026666,2]
[426304815,1782261048000,-500.0,0.00026666,2]
[426304811,1782261048000,-500.0,0.00026666,2]
[426304812,1782261048000,-500.0,0.00026666,2]
[426304814,1782261048000,-500.0,0.00026666,2]
[426304805,1782261048000,-500.0,0.00026666,2]
[426304810,1782261048000,-500.0,0.00026666,2]
[426304806,1782261048000,-500.0,0.00026666,2]
[426304813,1782261048000,-500.0,0.00026666,2]
[426304828,1782261048000,-151.0,0.00026703,7]
[426304818,1782261048000,-500.0,0.00026666,2]
[426304829,1782261048000,-544.0,0.00026703,7]
[426304820,1782261048000,-591.0,0.00026667,8]
[426304823,1782261048000,-151.0,0.00026703,7]
[426304807,1782261048000,-500.0,0.00026666,2]
[426304821,1782261048000,-200.0,0.00026679,2]
[426304824,1782261048000,-151.0,0.00026703,7]
[426304817,1782261048000,-500.0,0.00026666,2]
[426304827,1782261048000,-151.0,0.00026703,7]
[426304819,1782261048000,-15239.35068509,0.00026667,2]
[426304822,1782261048000,-167.31875847,0.00026703,7]
[426304826,1782261048000,-166.0,0.00026703,7]
[426304830,1782261048000,-874.13053088,0.00026712,2]
[426304832,1782261048000,-548.65850377,0.00026764,2]
[426304834,1782261048000,-313.19191958,0.00026768,2]
[426304835,1782261048000,-221.81365674,0.00026768,2]
[426304833,1782261048000,-355.79057515,0.00026768,2]
[426304776,1782261048000,-500.0,0.00026666,2]
[426304831,1782261048000,-10591.99714117,0.00026722,2]
[426304825,1782261048000,-291.5050583,0.00026703,7]
[426304809,1782261048000,-500.0,0.00026666,2]
[426304837,1782261048000,-329.23812889,0.00026768,2]
[426304808,1782261048000,-500.0,0.00026666,2]
[426304816,1782261048000,-500.0,0.00026666,2]
[426304774,1782261048000,-500.0,0.00026666,2]
[426304775,1782261048000,-500.0,0.00026666,2]
[426304777,1782261048000,-500.0,0.00026666,2]
[426304790,1782261048000,-500.0,0.00026666,2]
[426304791,1782261048000,-500.0,0.00026666,2]
[426304781,1782261048000,-500.0,0.00026666,2]
[426304784,1782261048000,-500.0,0.00026666,2]
[426304786,1782261048000,-500.0,0.00026666,2]
[426304787,1782261048000,-500.0,0.00026666,2]
[426304782,1782261048000,-500.0,0.00026666,2]
[426304792,1782261048000,-500.0,0.00026666,2]
[426304788,1782261048000,-500.0,0.00026666,2]
[426304789,1782261048000,-500.0,0.00026666,2]
[426304836,1782261048000,-154.30057292,0.00026768,2]
[426304783,1782261048000,-500.0,0.00026666,2]
[426304800,1782261048000,-500.0,0.00026666,2]
[426304803,1782261048000,-500.0,0.00026666,2]
[426304798,1782261048000,-500.0,0.00026666,2]
[426304797,1782261048000,-500.0,0.00026666,2]
[426304785,1782261048000,-500.0,0.00026666,2]
[426304799,1782261048000,-500.0,0.00026666,2]
[426304802,1782261048000,-500.0,0.00026666,2]
[426304793,1782261048000,-500.0,0.00026666,2]
[426304804,1782261048000,-500.0,0.00026666,2]
[426304795,1782261048000,-500.0,0.00026666,2]
[426304796,1782261048000,-500.0,0.00026666,2]
[426304794,1782261048000,-500.0,0.00026666,2]
[426304801,1782261048000,-500.0,0.00026666,2]
[426304882,1782261049000,-1000.0,0.00026821,2]
[426304879,1782261049000,-1000.0,0.00026821,2]
[426304878,1782261049000,-1000.0,0.00026821,2]
[426304876,1782261049000,-1000.0,0.00026821,2]
[426304867,1782261049000,-1000.0,0.00026821,2]
[426304872,1782261049000,-1000.0,0.00026821,2]
[426304873,1782261049000,-1000.0,0.00026821,2]
[426304870,1782261049000,-1000.0,0.00026821,2]
[426304868,1782261049000,-1000.0,0.00026821,2]
[426304869,1782261049000,-1000.0,0.00026821,2]
[426304871,1782261049000,-1000.0,0.00026821,2]
[426304887,1782261049000,-1000.0,0.00026821,2]
[426304888,1782261049000,-1000.0,0.00026821,2]
[426304880,1782261049000,-1000.0,0.00026821,2]
[426304885,1782261049000,-1000.0,0.00026821,2]
[426304886,1782261049000,-1000.0,0.00026821,2]
[426304884,1782261049000,-1000.0,0.00026821,2]
[426304883,1782261049000,-1000.0,0.00026821,2]
[426304877,1782261049000,-1000.0,0.00026821,2]
[426304889,1782261049000,-1000.0,0.00026821,2]
[426304900,1782261049000,-1000.0,0.00026821,2]
[426304890,1782261049000,-1000.0,0.00026821,2]
[426304895,1782261049000,-1000.0,0.00026821,2]
[426304897,1782261049000,-1000.0,0.00026821,2]
[426304866,1782261049000,-1000.0,0.00026821,2]
[426304881,1782261049000,-1000.0,0.00026821,2]
[426304865,1782261049000,-1000.0,0.00026821,2]
[426304856,1782261049000,-354.00175514,0.00026768,2]
[426304875,1782261049000,-1000.0,0.00026821,2]
[426304838,1782261049000,-215.22020598,0.00026768,2]
[426304840,1782261049000,-328.24144711,0.00026768,2]
[426304839,1782261049000,-604.96839787,0.00026768,2]
[426304842,1782261049000,-669.9591321,0.00026768,2]
[426304841,1782261049000,-154.22317271,0.00026768,2]
[426304843,1782261049000,-357.41532583,0.00026768,2]
[426304844,1782261049000,-238.95227734,0.00026768,2]
[426304845,1782261049000,-495.64618012,0.00026768,2]
[426304847,1782261049000,-424.46822635,0.00026768,2]
[426304848,1782261049000,-305.45537946,0.00026768,2]
[426304851,1782261049000,-394.68867195,0.00026768,2]
[426304846,1782261049000,-385.51141491,0.00026768,2]
[426304863,1782261049000,-1000.0,0.00026821,2]
[426304849,1782261049000,-401.77498156,0.00026768,2]
[426304854,1782261049000,-210.37268652,0.00026768,2]
[426304857,1782261049000,-303.89740827,0.00026768,2]
[426304855,1782261049000,-398.37854322,0.00026768,2]
[426304852,1782261049000,-236.59725527,0.00026768,2]
[426304853,1782261049000,-357.05954073,0.00026768,2]
[426304858,1782261049000,-207.82224297,0.00026768,2]
[426304861,1782261049000,-500.0,0.00026795,2]
[426304862,1782261049000,-214.5,0.000268,2]
[426304859,1782261049000,-327.43529791,0.00026768,2]
[426304860,1782261049000,-339.61036546,0.00026768,2]
[426304864,1782261049000,-1000.0,0.00026821,2]
[426304874,1782261049000,-1000.0,0.00026821,2]
[426304850,1782261049000,-369.09824413,0.00026768,2]
[426304892,1782261049000,-1000.0,0.00026821,2]
[426304896,1782261049000,-1000.0,0.00026821,2]
[426304893,1782261049000,-1000.0,0.00026821,2]
[426304926,1782261049000,-515.18611907,0.00026821,2]
[426304934,1782261049000,-220.547498,0.00026822,2]
[426304936,1782261049000,-220.547498,0.00026822,2]
[426304930,1782261049000,-200.0,0.00026822,2]
[426304929,1782261049000,-200.0,0.00026822,2]
[426304935,1782261049000,-220.547498,0.00026822,2]
[426304933,1782261049000,-151.0,0.00026822,2]
[426304932,1782261049000,-151.0,0.00026822,2]
[426304931,1782261049000,-200.0,0.00026822,2]
[426304937,1782261049000,-220.547498,0.00026822,2]
[426304940,1782261049000,-187.792673,0.00026822,2]
[426304945,1782261049000,-215.399205,0.00026822,2]
[426304928,1782261049000,-7151.5238254,0.00026822,2]
[426304938,1782261049000,-187.792673,0.00026822,2]
[426304944,1782261049000,-215.399205,0.00026822,2]
[426304943,1782261049000,-215.399205,0.00026822,2]
[426304942,1782261049000,-215.399205,0.00026822,2]
[426304947,1782261049000,-290.942729,0.00026822,2]
[426304952,1782261049000,-3000.0,0.00026822,3]
[426304953,1782261049000,-500.0,0.00026822,2]
[426304946,1782261049000,-151.0,0.00026822,2]
[426304949,1782261049000,-1195.861121,0.00026822,2]
[426304950,1782261049000,-1195.861121,0.00026822,2]
[426304951,1782261049000,-1195.861121,0.00026822,2]
[426304948,1782261049000,-1195.861121,0.00026822,2]
[426304899,1782261049000,-1000.0,0.00026821,2]
[426304941,1782261049000,-187.792673,0.00026822,2]
[426304927,1782261049000,-178.64205784,0.00026822,2]
[426304939,1782261049000,-187.792673,0.00026822,2]
[426304914,1782261049000,-1000.0,0.00026821,2]
[426304919,1782261049000,-1000.0,0.00026821,2]
[426304894,1782261049000,-1000.0,0.00026821,2]
[426304898,1782261049000,-1000.0,0.00026821,2]
[426304901,1782261049000,-1000.0,0.00026821,2]
[426304906,1782261049000,-1000.0,0.00026821,2]
[426304905,1782261049000,-1000.0,0.00026821,2]
[426304903,1782261049000,-1000.0,0.00026821,2]
[426304904,1782261049000,-1000.0,0.00026821,2]
[426304912,1782261049000,-1000.0,0.00026821,2]
[426304909,1782261049000,-1000.0,0.00026821,2]
[426304910,1782261049000,-1000.0,0.00026821,2]
[426304911,1782261049000,-1000.0,0.00026821,2]
[426304902,1782261049000,-1000.0,0.00026821,2]
[426304891,1782261049000,-1000.0,0.00026821,2]
[426304908,1782261049000,-1000.0,0.00026821,2]
[426304913,1782261049000,-1000.0,0.00026821,2]
[426304925,1782261049000,-1000.0,0.00026821,2]
[426304917,1782261049000,-1000.0,0.00026821,2]
[426304922,1782261049000,-1000.0,0.00026821,2]
[426304923,1782261049000,-1000.0,0.00026821,2]
[426304921,1782261049000,-1000.0,0.00026821,2]
[426304916,1782261049000,-1000.0,0.00026821,2]
[426304924,1782261049000,-1000.0,0.00026821,2]
[426304920,1782261049000,-1000.0,0.00026821,2]
[426304918,1782261049000,-1000.0,0.00026821,2]
[426304907,1782261049000,-1000.0,0.00026821,2]
[426304915,1782261049000,-1000.0,0.00026821,2]
[426304992,1782261050000,-151.0,0.00027096,2]
[426304993,1782261050000,-653.30079349,0.00027096,2]
[426304989,1782261050000,-670.58624095,0.00027095,2]
[426304991,1782261050000,-209.40437684,0.00027096,2]
[426304990,1782261050000,-599.60298507,0.00027095,2]
[426304986,1782261050000,-200.0,0.0002709,2]
[426304983,1782261050000,-322.832256,0.00027075,2]
[426304984,1782261050000,-5044.84610968,0.00027085,2]
[426304987,1782261050000,-198.87217539,0.0002709,2]
[426304996,1782261050000,-9427.65198881,0.00027096,2]
[426304985,1782261050000,-200.0,0.0002709,2]
[426304999,1782261050000,-225.18697532,0.00027096,2]
[426305000,1782261050000,-2000.0,0.000271,2]
[426304995,1782261050000,-225.18697532,0.00027096,2]
[426304998,1782261050000,-766.18943153,0.00027096,2]
[426304997,1782261050000,-2688.8869907,0.00027096,2]
[426305002,1782261050000,-357.0,0.00027122,7]
[426305001,1782261050000,-15239.35068509,0.00027111,2]
[426305003,1782261050000,-168.69,0.00027123,2]
[426305005,1782261050000,-498.29,0.00027169,2]
[426305008,1782261050000,-350.0,0.00027248,2]
[426305010,1782261050000,-15239.35068509,0.00027333,2]
[426305007,1782261050000,-200.0,0.00027227,2]
[426305012,1782261050000,-200.0,0.00027361,2]
[426304988,1782261050000,-221.19140366,0.00027094,2]
[426304994,1782261050000,-155.59381464,0.00027096,2]
[426304981,1782261050000,-322.832256,0.00027075,2]
[426305011,1782261050000,-200.0,0.00027361,2]
[426304982,1782261050000,-322.832256,0.00027075,2]
[426304955,1782261050000,-15239.35068509,0.00026889,2]
[426304957,1782261050000,-151.0,0.00026922,2]
[426304954,1782261050000,-2688.8869907,0.00026822,2]
[426304956,1782261050000,-300.0,0.000269,9]
[426304966,1782261050000,-50731.30548094,0.00027,8]
[426304967,1782261050000,-151.0,0.00027,2]
[426304960,1782261050000,-152.0,0.00026936,15]
[426304968,1782261050000,-151.0,0.00027,2]
[426304961,1782261050000,-496.167018,0.00026989,2]
[426304964,1782261050000,-169.4896224,0.00027,120]
[426304959,1782261050000,-151.0,0.00026922,2]
[426304962,1782261050000,-1000.0,0.00027,2]
[426304980,1782261050000,-322.832256,0.00027075,2]
[426304958,1782261050000,-151.0,0.00026922,2]
[426304963,1782261050000,-400379.94113713,0.00027,7]
[426304970,1782261050000,-3000.0,0.00027,3]
[426304969,1782261050000,-151.0,0.00027,2]
[426304972,1782261050000,-334167.85786009,0.00027075,2]
[426304973,1782261050000,-323.422718,0.00027075,2]
[426304974,1782261050000,-323.422718,0.00027075,2]
[426304971,1782261050000,-151.0,0.00027054,2]
[426304978,1782261050000,-288.535056,0.00027075,2]
[426304977,1782261050000,-151.0,0.00027075,2]
[426304979,1782261050000,-151.0,0.00027075,2]
[426304975,1782261050000,-323.422718,0.00027075,2]
[426304976,1782261050000,-323.422718,0.00027075,2]
[426304965,1782261050000,-292.19,0.00027,2]
[426305004,1782261050000,-200.0,0.00027155,2]
[426305067,1782261050000,-1231.83,0.000274,2]
[426305013,1782261050000,-2688.8869907,0.0002737,2]
[426305043,1782261050000,-2754.272956,0.00027397,2]
[426305047,1782261050000,-530.46,0.00027397,2]
[426305044,1782261050000,-2754.272956,0.00027397,2]
[426305040,1782261050000,-242.986246,0.00027397,2]
[426305042,1782261050000,-2754.272956,0.00027397,2]
[426305049,1782261050000,-31859.55,0.00027397,10]
[426305050,1782261050000,-26549.62,0.00027397,10]
[426305051,1782261050000,-200.23207802,0.00027397,2]
[426305059,1782261050000,-151.27539405,0.00027398,11]
[426305057,1782261050000,-150.0,0.00027398,2]
[426305060,1782261050000,-1000.0,0.000274,2]
[426305052,1782261050000,-158.89199679,0.00027397,2]
[426305056,1782261050000,-150.0,0.00027397,30]
[426305048,1782261050000,-300.0,0.00027397,2]
[426305058,1782261050000,-3648.0,0.00027398,2]
[426305054,1782261050000,-222.01392576,0.00027397,7]
[426305053,1782261050000,-317.78399357,0.00027397,2]
[426305055,1782261050000,-250.0,0.00027397,120]
[426305062,1782261050000,-2308.65,0.000274,7]
[426305061,1782261050000,-1154.55,0.000274,2]
[426305063,1782261050000,-2391.59,0.000274,7]
[426305064,1782261050000,-150.0,0.000274,7]
[426305068,1782261050000,-152.0,0.00027402,16]
[426305066,1782261050000,-1000.0,0.000274,2]
[426305006,1782261050000,-2278.45,0.0002722,7]
[426305045,1782261050000,-2754.272956,0.00027397,2]
[426305041,1782261050000,-242.986246,0.00027397,2]
[426305065,1782261050000,-1000.0,0.000274,2]
[426305039,1782261050000,-242.986246,0.00027397,2]
[426305046,1782261050000,-3095.42,0.00027397,2]
[426305009,1782261050000,-591.0,0.00027273,9]
[426305024,1782261050000,-208.46720499,0.00027397,2]
[426305014,1782261050000,-819.50611093,0.0002739,2]
[426305016,1782261050000,-331.3640683,0.00027397,7]
[426305015,1782261050000,-8295.14561913,0.0002739,2]
[426305017,1782261050000,-229.74,0.00027397,2]
[426305018,1782261050000,-1966.49509007,0.00027397,2]
[426305020,1782261050000,-308.31,0.00027397,2]
[426305022,1782261050000,-227.36,0.00027397,120]
[426305019,1782261050000,-160.0,0.00027397,2]
[426305023,1782261050000,-150.0,0.00027397,2]
[426305021,1782261050000,-239.88,0.00027397,2]
[426305025,1782261050000,-3000.0,0.00027397,2]
[426305027,1782261050000,-151.27539475,0.00027397,10]
[426305028,1782261050000,-814.18765773,0.00027397,2]
[426305037,1782261050000,-161.795167,0.00027397,2]
[426305034,1782261050000,-161.795167,0.00027397,2]
[426305033,1782261050000,-401.508067,0.00027397,2]
[426305030,1782261050000,-401.508067,0.00027397,2]
[426305029,1782261050000,-1475.2,0.00027397,2]